fUST/lending_fUST_20260124
["ID","MTS","AMOUNT","RATE_DAILY","PERIOD"]
[403147644,1769205038146,-151.0,0.000249,7]
[403147645,1769205038156,-209.56906,0.000249,7]
[403147646,1769205038165,-151.0,0.000249,7]
[403147647,1769205038174,-151.0,0.000249,7]
[403147648,1769205038184,-151.0,0.000249,7]
[403147649,1769205038193,-151.0,0.000249,7]
[403147650,1769205038202,-250.0,0.000249,10]
[403147651,1769205038211,-151.0,0.000249,7]
[403147652,1769205038221,-284.185816,0.000249,7]
[403147653,1769205038230,-151.0,0.000249,7]
[403147654,1769205038339,-151.0,0.000249,7]
[403147655,1769205038348,-151.0,0.000249,7]
[403147656,1769205038358,-151.0,0.000249,7]
[403147657,1769205038368,-151.0,0.000249,7]
[403147658,1769205038378,-151.0,0.000249,7]
[403147659,1769205038387,-151.0,0.000249,7]
[403147660,1769205038396,-151.0,0.000249,7]
[403147661,1769205038405,-151.0,0.000249,7]
[403147662,1769205038414,-151.0,0.000249,7]
[403147663,1769205038424,-151.0,0.000249,7]
[403147664,1769205038433,-151.0,0.000249,7]
[403147665,1769205038442,-151.0,0.000249,7]
[403147666,1769205038451,-623412.01642501,0.000249,2]
[403147667,1769205038469,-4044.34201699,0.000249,2]
[403147668,1769205038478,-500.0,0.000249,9]
[403147669,1769205038487,-404.437396,0.000249,7]
[403147670,1769205038498,-404.437396,0.000249,7]
[403147671,1769205038507,-404.437396,0.000249,7]
[403147672,1769205038516,-404.437396,0.000249,7]
[403147673,1769205038527,-404.437396,0.000249,7]
[403147674,1769205038536,-404.437396,0.000249,7]
[403147675,1769205038545,-404.437396,0.000249,7]
[403147676,1769205038555,-404.437396,0.000249,7]
[403147677,1769205038564,-5555.12,0.000249,2]
[403147678,1769205038573,-151.0,0.000249,7]
[403147679,1769205038583,-151.0,0.000249,7]
[403147680,1769205038592,-151.0,0.000249,7]
[403147681,1769205038602,-151.0,0.000249,7]
[403147682,1769205038611,-151.0,0.000249,7]
[403147683,1769205038621,-500.0,0.00024932,2]
[403147684,1769205038630,-1063.673548,0.0002498,5]
[403147685,1769205038639,-800.0,0.00025,2]
[403147686,1769205038649,-160.11878018,0.00025,2]
[403147687,1769205038659,-700.0,0.00025,120]
[403147688,1769205038668,-41574.2419693,0.00025,15]
[403147689,1769205038677,-1086.73946076,0.00025,2]
[403147690,1769205038686,-3716.25172279,0.00025,2]
[403147735,1769205040310,-568.66,0.00024999,2]
[403147759,1769205040520,-181.34,0.00025,2]
[403147763,1769205040550,-1103.22650223,0.00025,2]
[403147765,1769205040559,-173.57571782,0.00025,2]
[403147767,1769205040570,-497.23912308,0.00025,2]
[403147769,1769205040582,-379.90791928,0.00025,2]
[403148089,1769205043827,-1627.01214493,0.00025,2]
[403148091,1769205043836,-10364.0,0.00025,2]
[403148093,1769205043844,-500.0,0.00025,2]
[403148095,1769205043853,-26785.48190837,0.00025,8]
[403148097,1769205043862,-760.77110895,0.00025,2]
[403148098,1769205043871,-160.0,0.00025,30]
[403148100,1769205043880,-862.32113318,0.00025,30]
[403148102,1769205043889,-6000.64238156,0.00025,2]
[403148104,1769205043898,-200.0,0.00025,17]
[403148107,1769205043907,-150.0,0.00025,2]
[403148109,1769205043916,-9544.917551,0.00025,30]
[403148110,1769205043925,-1000.0,0.00025,5]
[403148113,1769205043935,-250.0,0.00025,10]
[403148115,1769205043944,-500.0,0.00025069,2]
[403148117,1769205043953,-182.4,0.00025096,2]
[403148118,1769205043962,-250.0,0.000251,10]
[403148120,1769205043971,-250.0,0.000252,10]
[403148122,1769205043980,-500.0,0.00025206,2]
[403148124,1769205043989,-312.06,0.000253,7]
[403148126,1769205043998,-250.0,0.000253,10]
[403148128,1769205044007,-500.0,0.00025343,2]
[403148130,1769205044016,-250.0,0.000254,10]
[403148132,1769205044025,-160.54500122,0.00025409,2]
[403148134,1769205044035,-900.0,0.00025469,3]
[403148136,1769205044044,-397.7555926,0.0002548,2]
[403148138,1769205044053,-1223.63055693,0.00025488,2]
[403148140,1769205044063,-571.0,0.00025492,3]
[403148143,1769205044072,-250.0,0.000255,10]
[403148144,1769205044082,-162.0,0.00025589,17]
[403148146,1769205044092,-250.0,0.000256,10]
[403148148,1769205044103,-250.0,0.000257,10]
[403148151,1769205044113,-250.0,0.000258,10]
[403148152,1769205044122,-150.0,0.000258,2]
[403148154,1769205044132,-5555.12,0.000258,2]
[403148156,1769205044141,-228.704919,0.00025802,30]
[403148158,1769205044150,-3878.0,0.00025812,3]
[403148160,1769205044158,-3878.0,0.00025812,3]
[403148162,1769205044167,-2115.776039,0.00025812,30]
[403148164,1769205044176,-4195.33,0.0002599,10]
[403148165,1769205044185,-800.0,0.00026,2]
[403148167,1769205044195,-700.0,0.00026,120]
[403148169,1769205044204,-20733.84848272,0.00026,10]
[403148171,1769205044213,-530.41268423,0.00026,2]
[403148173,1769205044222,-19900.0,0.00026,2]
[403148175,1769205044232,-84000.00000091,0.00026,30]
[403148177,1769205044241,-1041.66666667,0.00026,30]
[403148179,1769205044250,-1041.66666667,0.00026,10]
[403148181,1769205044260,-151.0,0.00026,7]
[403148183,1769205044269,-151.0,0.00026,7]
[403148185,1769205044277,-151.0,0.00026,7]
[403148187,1769205044287,-237.742711,0.00026,7]
[403148189,1769205044296,-151.0,0.00026,7]
[403148191,1769205044306,-151.0,0.00026,7]
[403148193,1769205044315,-154.392256,0.00026,7]
[403148195,1769205044325,-151.0,0.00026,7]
[403148197,1769205044335,-151.0,0.00026,7]
[403148199,1769205044343,-151.0,0.00026,7]
[403148200,1769205044352,-151.0,0.00026,7]
[403148202,1769205044362,-206.821888,0.00026,7]
[403148204,1769205044370,-151.0,0.00026,7]
[403148206,1769205044380,-151.0,0.00026,7]
[403148208,1769205044390,-198.556188,0.00026,7]
[403148210,1769205044399,-404.437396,0.00026,7]
[403148212,1769205044409,-404.437396,0.00026,7]
[403148214,1769205044418,-404.437396,0.00026,7]
[403148215,1769205044428,-404.437396,0.00026,7]
[403148216,1769205044437,-151.0,0.00026,7]
[403148217,1769205044447,-151.0,0.00026,7]
[403148218,1769205044460,-151.0,0.00026,7]
[403148220,1769205044469,-151.0,0.00026,7]
[403148221,1769205044479,-263.824771,0.00026,7]
[403148222,1769205044488,-151.0,0.00026027,7]
[403148224,1769205044499,-151.0,0.00026027,7]
[403148226,1769205044510,-151.0,0.00026027,7]
[403148227,1769205044519,-151.0,0.00026027,7]
[403148229,1769205044529,-151.0,0.00026027,7]
[403148231,1769205044538,-151.0,0.00026027,7]
[403148232,1769205044547,-151.0,0.00026027,7]
[403148233,1769205044557,-151.0,0.00026027,7]
[403148234,1769205044566,-152.1,0.00026027,7]
[403148235,1769205044575,-193.46,0.00026079,2]
[403148237,1769205044585,-1872.5,0.000261,14]
[403148239,1769205044594,-5555.11,0.000261,2]
[403148240,1769205044603,-3878.0,0.00026132,3]
[403148242,1769205044612,-194.85144519,0.0002616,2]
[403148243,1769205044621,-2037.30197,0.00026228,30]
[403148244,1769205044630,-447.49315784,0.00026239,2]
[403148245,1769205044639,-1000.0,0.00026254,30]
[403148246,1769205044648,-791.0,0.00026254,30]
[403148247,1769205044658,-160.0,0.00026406,3]
[403148248,1769205044667,-182.4,0.00026417,5]
[403148249,1769205044676,-160.96,0.000266,2]
[403148250,1769205044685,-312.06,0.000266,7]
[403148251,1769205044695,-359.89026425,0.00026637,2]
[403148252,1769205044704,-3878.0,0.00026726,3]
[403148253,1769205044713,-529.377113,0.00026784,30]
[403148254,1769205044723,-1010.378802,0.00026784,30]
[403148255,1769205044733,-1368.0,0.00026795,2]
[403148256,1769205044743,-2149.0,0.00026795,2]
[403148257,1769205044751,-5555.12,0.000268,2]
[403148258,1769205044760,-205.870346,0.00026856,30]
[403148259,1769205044770,-950.184349,0.00026862,30]
[403148260,1769205044779,-800.0,0.00027,2]
[403148261,1769205044788,-1000.0,0.00027,120]
[403148262,1769205044797,-202.27809,0.00027,120]
[403148263,1769205044807,-441.1797,0.00027,120]
[403148264,1769205044815,-203.8351,0.00027,120]
[403148265,1769205044824,-369.63131,0.00027,120]
[403148266,1769205044834,-200.0,0.00027,120]
[403148267,1769205044843,-5941.15610808,0.00027,2]
[403148268,1769205044856,-696.30707609,0.00027,2]
[403148269,1769205044869,-454.355,0.00027,2]
[403148270,1769205044880,-1959.44253199,0.00027,2]
[403148287,1769205046268,-151.0,0.00024882,7]
[403148288,1769205046279,-151.0,0.000249,7]
[403148289,1769205046290,-1155.0,0.00027,2]
[403148290,1769205046308,-1700.0,0.00027,2]
[403148300,1769205184986,150.0,0.00012222,2]
[403148303,1769205312771,150.0,0.00013467,2]
[403148304,1769205363254,500.0,0.00013699,2]
[403148311,1769206180165,1681.21771308,0.00014,2]
[403148319,1769206232240,-332.37406324,0.00014247,2]
[403148320,1769206232250,-191.52332777,0.00014247,2]
[403148321,1769206232260,-242.0,0.00015,2]
[403148322,1769206232270,-155.0,0.00015364,2]
[403148323,1769206232279,-225.99752677,0.00016247,2]
[403148324,1769206232289,-260.47172577,0.00018247,2]
[403148325,1769206232298,-3726.2833312,0.00018734,2]
[403148326,1769206232308,-300.0,0.00020098,2]
[403148327,1769206232318,-1200.0,0.00020098,2]
[403148329,1769206232327,-440.99778567,0.00020098,2]
[403148331,1769206232336,-326.75051363,0.00020098,2]
[403148333,1769206232345,-500.0,0.00020098,2]
[403148335,1769206232355,-158.98056679,0.00020098,2]
[403148337,1769206232364,-28551.8605128,0.00020099,2]
[403148339,1769206232373,-294.94592477,0.00020247,2]
[403148341,1769206232382,-1041.66666667,0.00020848,2]
[403148343,1769206232390,-5999.999999,0.00021,2]
[403148344,1769206232399,-200.995,0.00021015,2]
[403148345,1769206232409,-150.0,0.00021015,2]
[403148346,1769206232417,-232.708,0.00021015,2]
[403148347,1769206232426,-244.386,0.00021015,2]
[403148348,1769206232435,-250.0,0.00021015,2]
[403148349,1769206232445,-200.096,0.00021015,2]
[403148350,1769206232454,-261.866,0.00021015,2]
[403148351,1769206232463,-629.0,0.00021015,2]
[403148352,1769206232472,-1368.0,0.00021015,2]
[403148353,1769206232481,-2149.0,0.00021015,2]
[403148354,1769206232491,-178.0,0.00021015,2]
[403148355,1769206232500,-417.0,0.00021015,2]
[403148357,1769206232509,-300.0,0.00021419,10]
[403148359,1769206232517,-300.0,0.00021419,10]
[403148361,1769206232526,-300.0,0.00021419,10]
[403148363,1769206232535,-300.0,0.00021419,10]
[403148365,1769206232544,-300.0,0.00021419,10]
[403148367,1769206232554,-300.0,0.00021419,10]
[403148369,1769206232563,-300.0,0.00021419,10]
[403148371,1769206232572,-300.0,0.00021419,10]
[403148373,1769206232581,-300.0,0.00021419,10]
[403148375,1769206232591,-300.0,0.00021419,10]
[403148377,1769206232600,-300.0,0.00021419,10]
[403148379,1769206232609,-300.0,0.00021419,10]
[403148381,1769206232619,-300.0,0.00021419,10]
[403148384,1769206232631,-300.0,0.00021419,10]
[403148386,1769206232642,-300.0,0.00021419,10]
[403148388,1769206232651,-600.0,0.00021846,10]
[403148390,1769206232660,-1202.14,0.00021891,3]
[403148392,1769206232670,-594.0,0.00021917,2]
[403148394,1769206232680,-500.0,0.00021917,2]
[403148396,1769206232690,-500.0,0.00021917,2]
[403148398,1769206232700,-500.0,0.00021917,2]
[403148400,1769206232709,-500.0,0.00021917,2]
[403148402,1769206232718,-500.0,0.00021917,2]
[403148404,1769206232727,-500.0,0.00021917,2]
[403148406,1769206232736,-500.0,0.00021917,2]
[403148408,1769206232745,-500.0,0.00021917,2]
[403148410,1769206232755,-500.0,0.00021917,2]
[403148412,1769206232765,-525.77230835,0.00021917,2]
[403148414,1769206232774,-500.0,0.00021917,2]
[403148416,1769206232784,-500.0,0.00021917,2]
[403148418,1769206232795,-500.0,0.00021917,2]
[403148420,1769206232810,-500.0,0.00021917,2]
[403148422,1769206232819,-500.0,0.00021917,2]
[403148423,1769206232827,-500.0,0.00021917,2]
[403148424,1769206232836,-500.0,0.00021917,2]
[403148426,1769206232846,-500.0,0.00021917,2]
[403148428,1769206232855,-500.0,0.00021917,2]
[403148430,1769206232865,-500.0,0.00021917,2]
[403148432,1769206232875,-573.91,0.00021917,2]
[403148434,1769206232885,-500.0,0.00021917,2]
[403148436,1769206232894,-500.0,0.00021917,2]
[403148438,1769206232903,-500.0,0.00021917,2]
[403148440,1769206232912,-500.0,0.00021917,2]
[403148442,1769206232922,-500.0,0.00021917,2]
[403148444,1769206232934,-526.9,0.00021917,2]
[403148446,1769206232943,-500.0,0.00021917,2]
[403148448,1769206232952,-500.0,0.00021917,2]
[403148449,1769206232961,-500.0,0.00021917,2]
[403148450,1769206232971,-500.0,0.00021917,2]
[403148451,1769206232980,-500.0,0.00021917,2]
[403148452,1769206232990,-500.0,0.00021917,2]
[403148453,1769206233000,-523.98926963,0.00021917,2]
[403148455,1769206233010,-274.33750825,0.00021917,2]
[403148458,1769206233032,-245.11249175,0.00021917,2]
[403148460,1769206233042,-500.0,0.00021917,2]
[403148462,1769206233052,-500.0,0.00021917,2]
[403148464,1769206233062,-500.0,0.00021917,2]
[403148467,1769206233071,-500.0,0.00021917,2]
[403148469,1769206233082,-414.26072221,0.00021917,2]
[403148470,1769206233091,-500.0,0.00021917,2]
[403148473,1769206233102,-495.05832173,0.00021917,2]
[403148475,1769206233111,-500.0,0.00021917,2]
[403148477,1769206233121,-500.0,0.00021917,2]
[403148479,1769206233130,-500.0,0.00021917,2]
[403148481,1769206233140,-514.27000578,0.00021917,2]
[403148483,1769206233150,-500.0,0.00021917,2]
[403148485,1769206233159,-506.58316717,0.00021917,2]
[403148487,1769206233168,-500.0,0.00021917,2]
[403148489,1769206233178,-500.0,0.00021917,2]
[403148491,1769206233187,-500.0,0.00021917,2]
[403148493,1769206233196,-500.0,0.00021917,2]
[403148495,1769206233205,-1393.01,0.00021917,2]
[403148497,1769206233215,-500.0,0.00021917,2]
[403148499,1769206233224,-500.0,0.00021917,2]
[403148501,1769206233233,-497.16807369,0.00021917,2]
[403148503,1769206233243,-500.0,0.00021917,2]
[403148505,1769206233252,-500.0,0.00021917,2]
[403148520,1769206233377,-355.98271516,0.00021917,2]
[403148522,1769206233386,-500.0,0.00021917,2]
[403148524,1769206233396,-527.64180778,0.00021917,2]
[403148526,1769206233406,-500.0,0.00021917,2]
[403148528,1769206233415,-500.0,0.00021917,2]
[403148530,1769206233424,-500.0,0.00021917,2]
[403148532,1769206233433,-500.0,0.00021917,2]
[403148534,1769206233442,-500.0,0.00021917,2]
[403148536,1769206233451,-16349.45,0.00021917,2]
[403148538,1769206233461,-511.61989451,0.00021917,2]
[403148540,1769206233470,-500.0,0.00021917,2]
[403148542,1769206233479,-500.0,0.00021917,2]
[403148544,1769206233487,-500.0,0.00021917,2]
[403148546,1769206233496,-500.0,0.00021917,2]
[403148547,1769206233505,-500.0,0.00021917,2]
[403148550,1769206233517,-500.0,0.00021917,2]
[403148552,1769206233526,-500.0,0.00021917,2]
[403148554,1769206233535,-500.0,0.00021917,2]
[403148556,1769206233544,-500.0,0.00021917,2]
[403148558,1769206233553,-500.0,0.00021917,2]
[403148560,1769206233563,-2012.99,0.00021917,2]
[403148562,1769206233572,-500.0,0.00021917,2]
[403148564,1769206233583,-500.0,0.00021917,2]
[403148566,1769206233592,-500.0,0.00021917,2]
[403148568,1769206233601,-500.0,0.00021917,2]
[403148570,1769206233611,-500.0,0.00021917,2]
[403148572,1769206233620,-500.0,0.00021917,2]
[403148574,1769206233629,-500.0,0.00021917,2]
[403148576,1769206233639,-500.0,0.00021917,2]
[403148578,1769206233648,-500.0,0.00021917,2]
[403148580,1769206233658,-479.65688774,0.00021917,2]
[403148582,1769206233667,-500.0,0.00021917,2]
[403148584,1769206233676,-500.0,0.00021917,2]
[403148586,1769206233685,-1181.5,0.00021917,2]
[403148588,1769206233695,-500.0,0.00021917,2]
[403148590,1769206233705,-373.44493752,0.00021917,2]
[403148592,1769206233714,-526.63,0.00021917,2]
[403148594,1769206233724,-500.0,0.00021917,2]
[403148596,1769206233733,-500.0,0.00021917,2]
[403148598,1769206233742,-513.1823435,0.00021917,2]
[403148600,1769206233752,-500.0,0.00021917,2]
[403148602,1769206233761,-500.0,0.00021917,2]
[403148604,1769206233770,-500.0,0.00021917,2]
[403148606,1769206233779,-500.0,0.00021917,2]
[403148608,1769206233789,-500.0,0.00021917,2]
[403148610,1769206233799,-500.0,0.00021917,2]
[403148612,1769206233809,-500.0,0.00021917,2]
[403148614,1769206233819,-500.0,0.00021917,2]
[403148616,1769206233828,-500.0,0.00021917,2]
[403148618,1769206233837,-138.45688864,0.00021917,2]
[403148675,1769206238248,-3496.11,0.00021907,10]
[403148676,1769206238262,-9119.92284173,0.00021917,2]
[403148677,1769206238280,-366.28970288,0.00021917,2]
[403148678,1769206238295,-206.03871447,0.00021917,2]
[403148679,1769206238310,-500.0,0.00021917,2]
[403148680,1769206238327,-500.0,0.00021917,2]
[403148681,1769206238342,-500.0,0.00021917,2]
[403148682,1769206238357,-500.0,0.00021917,2]
[403148683,1769206238372,-591.01,0.00021917,2]
[403148685,1769206238387,-506.84959288,0.00021917,2]
[403148686,1769206238401,-500.0,0.00021917,2]
[403148687,1769206238416,-500.0,0.00021917,2]
[403148688,1769206238430,-500.0,0.00021917,2]
[403148689,1769206238448,-510.18400084,0.00021917,2]
[403148690,1769206238462,-500.0,0.00021917,2]
[403148691,1769206238476,-177.11379453,0.00021917,2]
[403148692,1769206238491,-500.0,0.00021917,2]
[403148693,1769206238505,-500.0,0.00021917,2]
[403148694,1769206238520,-708.46,0.00021917,2]
[403148695,1769206238534,-516.5290238,0.00021917,2]
[403148696,1769206238548,-500.0,0.00021917,2]
[403148697,1769206238562,-500.0,0.00021917,2]
[403148698,1769206238576,-500.0,0.00021917,2]
[403148699,1769206238591,-500.0,0.00021917,2]
[403148700,1769206238606,-500.0,0.00021917,2]
[403148701,1769206238619,-500.0,0.00021917,2]
[403148702,1769206238634,-500.0,0.00021917,2]
[403148703,1769206238649,-500.0,0.00021917,2]
[403148704,1769206238664,-500.0,0.00021917,2]
[403148705,1769206238679,-500.0,0.00021917,2]
[403148706,1769206238694,-500.0,0.00021917,2]
[403148707,1769206238709,-500.0,0.00021917,2]
[403148708,1769206238724,-500.0,0.00021917,2]
[403148709,1769206238739,-1037.36185412,0.00021917,2]
[403148710,1769206238755,-421.25838575,0.00021917,2]
[403148711,1769206238770,-500.87735113,0.00021917,2]
[403148712,1769206238785,-500.0,0.00021917,2]
[403148713,1769206238802,-500.0,0.00021917,2]
[403148714,1769206238816,-553.37,0.00021917,2]
[403148715,1769206238831,-500.0,0.00021917,2]
[403148716,1769206238844,-500.0,0.00021917,2]
[403148717,1769206238859,-500.0,0.00021917,2]
[403148718,1769206238875,-500.0,0.00021917,2]
[403148719,1769206238890,-500.0,0.00021917,2]
[403148720,1769206238904,-500.0,0.00021917,2]
[403148721,1769206238914,-500.0,0.00021917,2]
[403148722,1769206238923,-606.74691423,0.00021917,2]
[403148723,1769206238932,-500.0,0.00021917,2]
[403148724,1769206238941,-500.0,0.00021917,2]
[403148725,1769206238950,-500.0,0.00021917,2]
[403148726,1769206238959,-500.0,0.00021917,2]
[403148727,1769206238968,-500.0,0.00021917,2]
[403148728,1769206239176,-500.0,0.00021917,2]
[403148729,1769206239206,-529.57475927,0.00021917,2]
[403148730,1769206239217,-514.99131197,0.00021917,2]
[403148731,1769206239226,-511.42780304,0.00021917,2]
[403148732,1769206239235,-500.0,0.00021917,2]
[403148733,1769206239244,-500.0,0.00021917,2]
[403148734,1769206239254,-500.0,0.00021917,2]
[403148735,1769206239263,-500.0,0.00021917,2]
[403148736,1769206239273,-502.97745489,0.00021917,2]
[403148737,1769206239282,-500.0,0.00021917,2]
[403148738,1769206239292,-500.0,0.00021917,2]
[403148739,1769206239301,-500.0,0.00021917,2]
[403148740,1769206239310,-500.0,0.00021917,2]
[403148741,1769206239320,-500.0,0.00021917,2]
[403148742,1769206239330,-500.0,0.00021917,2]
[403148743,1769206239339,-500.0,0.00021917,2]
[403148744,1769206239348,-500.0,0.00021917,2]
[403148745,1769206239358,-500.0,0.00021917,2]
[403148746,1769206239368,-500.0,0.00021917,2]
[403148747,1769206239377,-500.0,0.00021917,2]
[403148748,1769206239386,-500.0,0.00021917,2]
[403148749,1769206239395,-500.0,0.00021917,2]
[403148750,1769206239404,-500.0,0.00021917,2]
[403148751,1769206239414,-551.21924082,0.00021917,2]
[403148752,1769206239423,-500.0,0.00021917,2]
[403148753,1769206239432,-224.41708858,0.00021917,2]
[403148754,1769206239441,-500.0,0.00021917,2]
[403148755,1769206239450,-500.0,0.00021917,2]
[403148756,1769206239459,-500.0,0.00021917,2]
[403148757,1769206239469,-500.0,0.00021917,2]
[403148758,1769206239478,-500.0,0.00021917,2]
[403148759,1769206239487,-500.0,0.00021917,2]
[403148760,1769206239495,-170.47986264,0.00021917,2]
[403148761,1769206239504,-500.0,0.00021917,2]
[403148762,1769206239514,-500.0,0.00021917,2]
[403148763,1769206239523,-500.0,0.00021917,2]
[403148764,1769206239532,-500.0,0.00021917,2]
[403148765,1769206239541,-1000.0,0.00021917,2]
[403148766,1769206239550,-500.0,0.00021917,2]
[403148767,1769206239559,-500.0,0.00021917,2]
[403148768,1769206239569,-500.0,0.00021917,2]
[403148769,1769206239578,-500.0,0.00021917,2]
[403148770,1769206239587,-529.42,0.00021917,2]
[403148771,1769206239596,-500.0,0.00021917,2]
[403148772,1769206239605,-500.0,0.00021917,2]
[403148773,1769206239616,-500.0,0.00021917,2]
[403148774,1769206239626,-500.0,0.00021917,2]
[403148775,1769206239635,-500.0,0.00021917,2]
[403148776,1769206239645,-500.0,0.00021917,2]
[403148777,1769206239654,-500.0,0.00021917,2]
[403148778,1769206239663,-837.43,0.00021917,2]
[403148779,1769206239672,-500.0,0.00021917,2]
[403148780,1769206239683,-470.35953684,0.00021917,2]
[403148781,1769206239693,-500.0,0.00021917,2]
[403148782,1769206239704,-500.0,0.00021917,2]
[403148783,1769206239713,-500.0,0.00021917,2]
[403148784,1769206239721,-500.0,0.00021917,2]
[403148785,1769206239730,-367.0341672,0.00021917,2]
[403148786,1769206239741,-500.0,0.00021917,2]
[403148787,1769206239750,-500.0,0.00021917,2]
[403148788,1769206239760,-500.0,0.00021917,2]
[403148789,1769206239768,-500.0,0.00021917,2]
[403148790,1769206239777,-500.0,0.00021917,2]
[403148791,1769206239787,-500.0,0.00021917,2]
[403148792,1769206239798,-500.0,0.00021917,2]
[403148793,1769206239811,-500.0,0.00021917,2]
[403148794,1769206239821,-500.0,0.00021917,2]
[403148795,1769206239830,-500.0,0.00021917,2]
[403148796,1769206239839,-500.0,0.00021917,2]
[403148797,1769206239849,-500.0,0.00021917,2]
[403148798,1769206239859,-500.0,0.00021917,2]
[403148799,1769206239868,-500.0,0.00021917,2]
[403148800,1769206239879,-500.0,0.00021917,2]
[403148801,1769206239887,-500.0,0.00021917,2]
[403148802,1769206239897,-500.0,0.00021917,2]
[403148803,1769206239912,-500.0,0.00021917,2]
[403148804,1769206239931,-535.98577978,0.00021917,2]
[403148805,1769206239941,-500.0,0.00021917,2]
[403148806,1769206239950,-500.0,0.00021917,2]
[403148807,1769206239960,-500.0,0.00021917,2]
[403148808,1769206239969,-500.0,0.00021917,2]
[403148809,1769206239982,-500.0,0.00021917,2]
[403148810,1769206239998,-502.47929742,0.00021917,2]
[403148811,1769206240007,-500.0,0.00021917,2]
[403148812,1769206240016,-500.0,0.00021917,2]
[403148813,1769206240025,-500.0,0.00021917,2]
[403148814,1769206240035,-500.0,0.00021917,2]
[403148815,1769206240044,-500.0,0.00021917,2]
[403148816,1769206240053,-564.53769404,0.00021917,2]
[403148818,1769206240062,-500.0,0.00021917,2]
[403148820,1769206240071,-531.93,0.00021917,2]
[403148822,1769206240081,-546.80019924,0.00021917,2]
[403148823,1769206240089,-500.0,0.00021917,2]
[403148824,1769206240098,-500.0,0.00021917,2]
[403148825,1769206240109,-500.0,0.00021917,2]
[403148826,1769206240119,-500.0,0.00021917,2]
[403148827,1769206240128,-500.0,0.00021917,2]
[403148828,1769206240137,-500.0,0.00021917,2]
[403148829,1769206240145,-199.84619638,0.00021917,2]
[403148830,1769206240154,-500.0,0.00021917,2]
[403148831,1769206240163,-500.0,0.00021917,2]
[403148832,1769206240172,-500.0,0.00021917,2]
[403148833,1769206240183,-500.0,0.00021917,2]
[403148834,1769206240192,-544.37351887,0.00021917,2]
[403148835,1769206240202,-500.0,0.00021917,2]
[403148836,1769206240211,-500.0,0.00021917,2]
[403148837,1769206240222,-500.0,0.00021917,2]
[403148838,1769206240231,-500.0,0.00021917,2]
[403148839,1769206240240,-151.0,0.00021917,2]
[403148840,1769206240249,-501.45419374,0.00021917,2]
[403148841,1769206240258,-500.0,0.00021917,2]
[403148842,1769206240267,-509.11,0.00021917,2]
[403148843,1769206240276,-500.0,0.00021917,2]
[403148844,1769206240285,-537.56,0.00021917,2]
[403148845,1769206240294,-500.0,0.00021917,2]
[403148846,1769206240302,-500.0,0.00021917,2]
[403148847,1769206240311,-500.0,0.00021917,2]
[403148848,1769206240320,-5417.63,0.00021917,2]